[Event "*** Titled Tuesday Blitz"]
[Site "Chess.com"]
[Date "2021.04.20"]
[Round "7"]
[White "Pelopidass"]
[Black "noblerone"]
[Result "1-0"]
[WhiteElo "2554"]
[BlackElo "2390"]
[TimeControl "180+1"]
[EndTime "11:17:01 PDT"]
[Termination "Pelopidass won on time"]

1. e4 {[%clk 0:03:00.9]} 1... c5 {[%clk 0:02:57.5]} 2. b4 {[%clk 0:03:01.3]}
2... d6 {[%clk 0:02:46.3]} 3. bxc5 {[%clk 0:02:56.9]} 3... dxc5 {[%clk
0:02:47.2]} 4. Nf3 {[%clk 0:02:57]} 4... e6 {[%clk 0:02:44.7]} 5. Bb2 {[%clk
0:02:54.7]} 5... Nf6 {[%clk 0:02:44.3]} 6. d3 {[%clk 0:02:52.1]} 6... Nc6 {[%clk
0:02:43.6]} 7. Nbd2 {[%clk 0:02:48.3]} 7... Be7 {[%clk 0:02:41.6]} 8. g3 {[%clk
0:02:48.6]} 8... O-O {[%clk 0:02:41.1]} 9. Bg2 {[%clk 0:02:49.1]} 9... b6 {[%clk
0:02:40.3]} 10. O-O {[%clk 0:02:48.8]} 10... Bb7 {[%clk 0:02:40.6]} 11. Rb1
{[%clk 0:02:31.4]} 11... Qc7 {[%clk 0:02:33.4]} 12. h3 {[%clk 0:02:29.6]} 12...
Rad8 {[%clk 0:02:29.9]} 13. Qe2 {[%clk 0:02:22.2]} 13... e5 {[%clk 0:02:11.5]}
14. Nc4 {[%clk 0:02:18.2]} 14... Nd4 {[%clk 0:01:52.5]} 15. Qd1 {[%clk
0:02:06.5]} 15... Nd7 {[%clk 0:01:48.2]} 16. c3 {[%clk 0:02:01.1]} 16... Nxf3+
{[%clk 0:01:47.4]} 17. Qxf3 {[%clk 0:01:52.8]} 17... f5 {[%clk 0:01:40.3]} 18.
Qe2 {[%clk 0:01:52.1]} 18... f4 {[%clk 0:01:38.8]} 19. Bf3 {[%clk 0:01:39.5]}
19... b5 {[%clk 0:01:27.8]} 20. Nd2 {[%clk 0:01:35.7]} 20... a6 {[%clk
0:01:28.2]} 21. Kg2 {[%clk 0:01:25.5]} 21... Nf6 {[%clk 0:01:23.1]} 22. a4
{[%clk 0:01:07.1]} 22... Qd6 {[%clk 0:01:14.4]} 23. axb5 {[%clk 0:00:58.1]}
23... axb5 {[%clk 0:01:15.3]} 24. d4 {[%clk 0:00:57]} 24... cxd4 {[%clk
0:00:21.3]} 25. cxd4 {[%clk 0:00:55.7]} 25... exd4 {[%clk 0:00:20.3]} 26. e5
{[%clk 0:00:54.8]} 26... Bxf3+ {[%clk 0:00:21.2]} 27. Nxf3 {[%clk 0:00:53.6]}
27... Qe6 {[%clk 0:00:20.9]} 28. Qxb5 {[%clk 0:00:50.1]} 28... Ne4 {[%clk
0:00:18.8]} 29. Nxd4 {[%clk 0:00:43.8]} 29... Qg6 {[%clk 0:00:13.2]} 30. Qb3+
{[%clk 0:00:39.9]} 30... Kh8 {[%clk 0:00:13.1]} 31. Qe6 {[%clk 0:00:34]} 31...
f3+ {[%clk 0:00:11.4]} 32. Kh2 {[%clk 0:00:33]} 32... Rde8 {[%clk 0:00:09.6]}
33. Qxg6 {[%clk 0:00:32.3]} 33... hxg6 {[%clk 0:00:08.8]} 34. Rbe1 {[%clk
0:00:19.6]} 34... Nd2 {[%clk 0:00:08.1]} 35. Rg1 {[%clk 0:00:20]} 35... Bc5
{[%clk 0:00:07.4]} 36. Rd1 {[%clk 0:00:13.6]} 36... Nc4 {[%clk 0:00:07.3]} 37.
Ba1 {[%clk 0:00:12.8]} 37... Rxe5 {[%clk 0:00:06.1]} 38. Rc1 {[%clk 0:00:10.6]}
38... Bxd4 {[%clk 0:00:05.6]} 39. Bxd4 {[%clk 0:00:09.1]} 39... Re2 {[%clk
0:00:01.8]} 40. Rxc4 {[%clk 0:00:09.3]} 40... Rd8 {[%clk 0:00:02]} 41. Rgc1
{[%clk 0:00:08]} 1-0

[Event "*** Titled Tuesday Blitz"]
[Site "Chess.com"]
[Date "2021.04.20"]
[Round "7"]
[White "Koalaskakistis"]
[Black "vanyakuba"]
[Result "1-0"]
[WhiteElo "2552"]
[BlackElo "2393"]
[TimeControl "180+1"]
[EndTime "11:17:02 PDT"]
[Termination "Koalaskakistis won by resignation"]

1. Nf3 {[%clk 0:03:00.9]} 1... d5 {[%clk 0:02:59.8]} 2. g3 {[%clk 0:03:01]} 2...
Nf6 {[%clk 0:02:59]} 3. Bg2 {[%clk 0:03:01.4]} 3... c5 {[%clk 0:02:59.2]} 4. O-O
{[%clk 0:03:01.9]} 4... Nc6 {[%clk 0:02:59.8]} 5. d3 {[%clk 0:03:02.8]} 5... g6
{[%clk 0:02:51.3]} 6. Nbd2 {[%clk 0:03:02.7]} 6... Bg7 {[%clk 0:02:51.6]} 7. e4
{[%clk 0:03:03.6]} 7... O-O {[%clk 0:02:51.4]} 8. Re1 {[%clk 0:03:03.8]} 8... e5
{[%clk 0:02:42]} 9. exd5 {[%clk 0:03:02.8]} 9... Nxd5 {[%clk 0:02:42]} 10. Nc4
{[%clk 0:03:03.3]} 10... Re8 {[%clk 0:02:39.4]} 11. Ng5 {[%clk 0:03:03.3]} 11...
Nb6 {[%clk 0:01:49.9]} 12. Ne4 {[%clk 0:02:26.4]} 12... Nxc4 {[%clk 0:01:21.9]}
13. dxc4 {[%clk 0:02:27.3]} 13... Qxd1 {[%clk 0:01:17]} 14. Rxd1 {[%clk
0:02:28.2]} 14... Nd4 {[%clk 0:00:37.5]} 15. c3 {[%clk 0:02:22.6]} 15... Ne2+
{[%clk 0:00:32.4]} 16. Kh1 {[%clk 0:02:13.7]} 16... Nxc1 {[%clk 0:00:32.3]} 17.
Raxc1 {[%clk 0:02:14.6]} 17... Bg4 {[%clk 0:00:32.3]} 18. Re1 {[%clk 0:01:42.2]}
18... Kf8 {[%clk 0:00:16.3]} 19. Nxc5 {[%clk 0:01:41.3]} 19... Bh6 {[%clk
0:00:13.5]} 20. Rc2 {[%clk 0:01:40.3]} 20... Rad8 {[%clk 0:00:11.3]} 21. Nxb7
{[%clk 0:01:38.3]} 21... Rd2 {[%clk 0:00:06.8]} 22. Rxd2 {[%clk 0:01:23.1]}
22... Bxd2 {[%clk 0:00:07.7]} 23. Rb1 {[%clk 0:01:24]} 23... Rb8 {[%clk
0:00:06.7]} 24. c5 {[%clk 0:01:18.2]} 24... Rc8 {[%clk 0:00:02.7]} 25. c6 {[%clk
0:01:17.4]} 25... Be6 {[%clk 0:00:02.7]} 26. Nc5 {[%clk 0:01:07.1]} 26... Bxa2
{[%clk 0:00:02.3]} 27. Ra1 {[%clk 0:01:07.5]} 27... Bc4 {[%clk 0:00:02.8]} 28.
Rxa7 {[%clk 0:01:07.7]} 28... Bg5 {[%clk 0:00:03.2]} 29. Nd7+ {[%clk 0:01:02.1]}
29... Ke8 {[%clk 0:00:02.7]} 30. Nxe5 {[%clk 0:01:03]} 30... Be6 {[%clk
0:00:02.8]} 31. c7 {[%clk 0:01:00.7]} 31... Bf6 {[%clk 0:00:02.5]} 32. Bc6+
{[%clk 0:00:59.4]} 32... Ke7 {[%clk 0:00:01.9]} 33. Nd3 {[%clk 0:00:55.8]} 33...
Kd6 {[%clk 0:00:02.1]} 34. Bf3 {[%clk 0:00:52.8]} 34... Rxc7 {[%clk 0:00:02.4]}
35. Rxc7 {[%clk 0:00:53.2]} 35... Kxc7 {[%clk 0:00:03.3]} 36. Kg2 {[%clk
0:00:54]} 36... Bf5 {[%clk 0:00:03.6]} 37. Nb4 {[%clk 0:00:53.2]} 37... Bg7
{[%clk 0:00:02.7]} 38. Nd5+ {[%clk 0:00:52.7]} 38... Kd6 {[%clk 0:00:03.3]} 39.
Ne3 {[%clk 0:00:52.4]} 39... Bd7 {[%clk 0:00:03.4]} 40. Bd5 {[%clk 0:00:50.6]}
40... f5 {[%clk 0:00:03.1]} 41. Bg8 {[%clk 0:00:50.4]} 41... h6 {[%clk
0:00:03.2]} 42. Bh7 {[%clk 0:00:50.9]} 42... Be8 {[%clk 0:00:03.9]} 43. Bg8
{[%clk 0:00:50.6]} 43... Ke5 {[%clk 0:00:03.1]} 44. Kf3 {[%clk 0:00:48.6]} 44...
Kd6 {[%clk 0:00:03.3]} 45. h4 {[%clk 0:00:48.2]} 45... Bf6 {[%clk 0:00:02.4]}
46. h5 {[%clk 0:00:48.3]} 46... gxh5 {[%clk 0:00:01.9]} 47. Nxf5+ {[%clk
0:00:48.4]} 47... Ke5 {[%clk 0:00:02.4]} 48. Ne3 {[%clk 0:00:46.7]} 48... Bc6+
{[%clk 0:00:02.2]} 49. Ke2 {[%clk 0:00:44]} 49... h4 {[%clk 0:00:02.7]} 50. Ng4+
{[%clk 0:00:44.2]} 50... Kf5 {[%clk 0:00:02.1]} 51. Nxf6 {[%clk 0:00:44.3]}
51... Kxf6 {[%clk 0:00:03]} 52. gxh4 {[%clk 0:00:44.3]} 52... Bd7 {[%clk
0:00:03]} 53. f4 {[%clk 0:00:41.6]} 53... Kf5 {[%clk 0:00:03.1]} 54. Kf3 {[%clk
0:00:39.7]} 54... Bc6+ {[%clk 0:00:03.2]} 55. Kg3 {[%clk 0:00:39.7]} 1-0

[Event "*** Titled Tuesday Blitz"]
[Site "Chess.com"]
[Date "2021.04.20"]
[Round "7"]
[White "chessajedrezz2020"]
[Black "MateusViageiro"]
[Result "1-0"]
[WhiteElo "2705"]
[BlackElo "2281"]
[TimeControl "180+1"]
[EndTime "11:17:03 PDT"]
[Termination "chessajedrezz2020 won by checkmate"]

1. Nf3 {[%clk 0:02:59]} 1... Nf6 {[%clk 0:02:59.8]} 2. d4 {[%clk 0:02:58.2]}
2... e6 {[%clk 0:02:59.4]} 3. e3 {[%clk 0:02:57.6]} 3... c5 {[%clk 0:02:58.9]}
4. Bd3 {[%clk 0:02:57.4]} 4... cxd4 {[%clk 0:02:58.7]} 5. exd4 {[%clk
0:02:57.2]} 5... b6 {[%clk 0:02:57.5]} 6. O-O {[%clk 0:02:57]} 6... Bb7 {[%clk
0:02:57.7]} 7. Re1 {[%clk 0:02:57.1]} 7... Be7 {[%clk 0:02:57.8]} 8. Bg5 {[%clk
0:02:45.5]} 8... O-O {[%clk 0:02:56.8]} 9. Nbd2 {[%clk 0:02:34.3]} 9... d6
{[%clk 0:02:56.5]} 10. c3 {[%clk 0:02:33.4]} 10... Nbd7 {[%clk 0:02:56]} 11. Qe2
{[%clk 0:02:33]} 11... h6 {[%clk 0:02:55.3]} 12. Bh4 {[%clk 0:02:32]} 12... Nd5
{[%clk 0:02:55.3]} 13. Bg3 {[%clk 0:02:31.6]} 13... N7f6 {[%clk 0:02:47.3]} 14.
Rad1 {[%clk 0:02:25]} 14... Nh5 {[%clk 0:02:43.3]} 15. Qe4 {[%clk 0:02:12]}
15... Nhf6 {[%clk 0:02:34.8]} 16. Qe2 {[%clk 0:02:07.5]} 16... Nh5 {[%clk
0:02:31.4]} 17. Qe4 {[%clk 0:02:05.4]} 17... Nhf6 {[%clk 0:02:31]} 18. Qh4
{[%clk 0:02:05.3]} 18... a6 {[%clk 0:02:05.8]} 19. c4 {[%clk 0:01:32.1]} 19...
Nb4 {[%clk 0:02:05.1]} 20. Bb1 {[%clk 0:01:32.2]} 20... Ne4 {[%clk 0:01:59.8]}
21. Qh3 {[%clk 0:01:28.2]} 21... Nxg3 {[%clk 0:01:57.1]} 22. hxg3 {[%clk
0:01:05.6]} 22... d5 {[%clk 0:01:52.2]} 23. a3 {[%clk 0:01:02.7]} 23... Nc6
{[%clk 0:01:51.5]} 24. cxd5 {[%clk 0:01:00.2]} 24... Qxd5 {[%clk 0:01:49.4]} 25.
Be4 {[%clk 0:00:56.4]} 25... Qd8 {[%clk 0:01:48]} 26. Nc4 {[%clk 0:00:49.9]}
26... b5 {[%clk 0:01:38.4]} 27. Ne3 {[%clk 0:00:45.9]} 27... Na5 {[%clk
0:01:31.7]} 28. d5 {[%clk 0:00:45]} 28... exd5 {[%clk 0:01:24.5]} 29. Bxd5
{[%clk 0:00:43.9]} 29... Bxd5 {[%clk 0:00:58]} 30. Nxd5 {[%clk 0:00:43.6]} 30...
Bf6 {[%clk 0:00:43.6]} 31. Qf5 {[%clk 0:00:34.9]} 31... Nc4 {[%clk 0:00:25.9]}
32. b3 {[%clk 0:00:23.4]} 32... Nxa3 {[%clk 0:00:20.8]} 33. Nh2 {[%clk
0:00:22.4]} 33... Re8 {[%clk 0:00:14.3]} 34. Rxe8+ {[%clk 0:00:15.3]} 34... Qxe8
{[%clk 0:00:14.5]} 35. Nxf6+ {[%clk 0:00:15.9]} 35... gxf6 {[%clk 0:00:14.2]}
36. Ng4 {[%clk 0:00:16.4]} 36... Qe6 {[%clk 0:00:13.3]} 37. Nxh6+ {[%clk
0:00:09.3]} 37... Kg7 {[%clk 0:00:13.1]} 38. Qh5 {[%clk 0:00:08.7]} 38... Rc8
{[%clk 0:00:10.7]} 39. Nf5+ {[%clk 0:00:08.5]} 39... Kg8 {[%clk 0:00:08.7]} 40.
Qg4+ {[%clk 0:00:08.5]} 40... Kf8 {[%clk 0:00:08.3]} 41. Qg7+ {[%clk 0:00:08.5]}
41... Ke8 {[%clk 0:00:09.2]} 42. Qg8# {[%clk 0:00:07.8]} 1-0

[Event "*** Titled Tuesday Blitz"]
[Site "Chess.com"]
[Date "2021.04.20"]
[Round "7"]
[White "chesslh19"]
[Black "PowerThinking2650"]
[Result "0-1"]
[WhiteElo "2234"]
[BlackElo "2397"]
[TimeControl "180+1"]
[EndTime "11:17:03 PDT"]
[Termination "PowerThinking2650 won by resignation"]

1. e4 {[%clk 0:03:00.9]} 1... e5 {[%clk 0:02:58.9]} 2. Nf3 {[%clk 0:03:00.5]}
2... Nc6 {[%clk 0:02:59.1]} 3. Bb5 {[%clk 0:03:01.2]} 3... a6 {[%clk 0:02:59]}
4. Bxc6 {[%clk 0:03:00.3]} 4... dxc6 {[%clk 0:02:59.9]} 5. O-O {[%clk
0:03:00.5]} 5... f6 {[%clk 0:03:00.5]} 6. d4 {[%clk 0:03:00.4]} 6... exd4 {[%clk
0:03:01.4]} 7. Nxd4 {[%clk 0:03:01.2]} 7... c5 {[%clk 0:03:00.6]} 8. Nb3 {[%clk
0:03:01.5]} 8... Qxd1 {[%clk 0:03:01.4]} 9. Rxd1 {[%clk 0:03:02.3]} 9... Bd7
{[%clk 0:03:00.6]} 10. Bf4 {[%clk 0:03:01.4]} 10... O-O-O {[%clk 0:02:57.6]} 11.
Nc3 {[%clk 0:03:01.5]} 11... Bc6 {[%clk 0:02:55.8]} 12. f3 {[%clk 0:02:53.6]}
12... b6 {[%clk 0:02:48.8]} 13. Rxd8+ {[%clk 0:02:52]} 13... Kxd8 {[%clk
0:02:48.2]} 14. Rd1+ {[%clk 0:02:52.9]} 14... Kc8 {[%clk 0:02:48.4]} 15. Nd5
{[%clk 0:02:46.4]} 15... Bxd5 {[%clk 0:02:48.5]} 16. Rxd5 {[%clk 0:02:36.3]}
16... Ne7 {[%clk 0:02:48]} 17. Rd1 {[%clk 0:02:36.9]} 17... g5 {[%clk
0:02:48.2]} 18. Be3 {[%clk 0:02:36.2]} 18... Bg7 {[%clk 0:02:48.4]} 19. c3
{[%clk 0:02:24.1]} 19... h6 {[%clk 0:02:45.5]} 20. Kf1 {[%clk 0:02:22.9]} 20...
f5 {[%clk 0:02:44.8]} 21. Nd2 {[%clk 0:02:07.9]} 21... Rd8 {[%clk 0:02:35.5]}
22. Ke2 {[%clk 0:02:06.7]} 22... Re8 {[%clk 0:02:27.2]} 23. Kd3 {[%clk
0:01:50.9]} 23... f4 {[%clk 0:02:22.4]} 24. Bf2 {[%clk 0:01:47.6]} 24... Nc6
{[%clk 0:02:23.1]} 25. Kc2 {[%clk 0:01:39.1]} 25... Ne5 {[%clk 0:02:19.3]} 26.
b3 {[%clk 0:01:28.5]} 26... Rd8 {[%clk 0:02:10.7]} 27. Nc4 {[%clk 0:01:17.1]}
27... Rxd1 {[%clk 0:02:05.1]} 28. Kxd1 {[%clk 0:01:18]} 28... Nxc4 {[%clk
0:02:04.7]} 29. bxc4 {[%clk 0:01:16.5]} 29... Bxc3 {[%clk 0:02:04.6]} 30. Kc2
{[%clk 0:00:36.3]} 30... Bd4 {[%clk 0:02:01.3]} 31. Be1 {[%clk 0:00:34.7]} 31...
c6 {[%clk 0:01:57.2]} 32. Kd3 {[%clk 0:00:33.7]} 32... Kd7 {[%clk 0:01:56.5]}
33. h4 {[%clk 0:00:31.3]} 33... b5 {[%clk 0:01:50.3]} 34. hxg5 {[%clk
0:00:30.2]} 34... hxg5 {[%clk 0:01:50.1]} 35. Bd2 {[%clk 0:00:25.9]} 35... Be5
{[%clk 0:01:46.2]} 36. Be1 {[%clk 0:00:24.5]} 36... Kc7 {[%clk 0:01:42.9]} 37.
Ba5+ {[%clk 0:00:24.3]} 37... Kb7 {[%clk 0:01:41.1]} 38. Be1 {[%clk 0:00:24.8]}
38... Kb6 {[%clk 0:01:39.8]} 39. Bd2 {[%clk 0:00:24.3]} 39... b4 {[%clk
0:01:36.3]} 40. Be1 {[%clk 0:00:23.2]} 40... a5 {[%clk 0:01:22.9]} 41. Kc2
{[%clk 0:00:23.1]} 41... a4 {[%clk 0:01:22.9]} 42. Bd2 {[%clk 0:00:21.4]} 42...
Bd4 {[%clk 0:01:17.6]} 43. Be1 {[%clk 0:00:20.2]} 43... Kc7 {[%clk 0:01:15.2]}
44. Kd3 {[%clk 0:00:14.8]} 44... Kd6 {[%clk 0:01:05.9]} 45. Kc2 {[%clk
0:00:14.7]} 45... Ke5 {[%clk 0:01:05.5]} 46. g4 {[%clk 0:00:14.5]} 46... Ke6
{[%clk 0:00:20.3]} 47. Kd3 {[%clk 0:00:14.4]} 47... b3 {[%clk 0:00:19.4]} 48.
axb3 {[%clk 0:00:13.6]} 48... a3 {[%clk 0:00:19.8]} 49. b4 {[%clk 0:00:06.5]}
49... a2 {[%clk 0:00:18.7]} 0-1

[Event "*** Titled Tuesday Blitz"]
[Site "Chess.com"]
[Date "2021.04.20"]
[Round "7"]
[White "Anna_ChessMate"]
[Black "Reader777"]
[Result "1-0"]
[WhiteElo "2581"]
[BlackElo "2685"]
[TimeControl "180+1"]
[EndTime "11:17:04 PDT"]
[Termination "Anna_ChessMate won by resignation"]

1. d4 {[%clk 0:02:48.8]} 1... Nf6 {[%clk 0:02:59.2]} 2. c4 {[%clk 0:02:49.2]}
2... e6 {[%clk 0:02:59]} 3. Nf3 {[%clk 0:02:44.7]} 3... Bb4+ {[%clk 0:02:57.8]}
4. Bd2 {[%clk 0:02:44.6]} 4... a5 {[%clk 0:02:56.2]} 5. g3 {[%clk 0:02:44.4]}
5... O-O {[%clk 0:02:52.6]} 6. Bg2 {[%clk 0:02:44.9]} 6... d5 {[%clk 0:02:52.3]}
7. c5 {[%clk 0:02:29.8]} 7... Bxd2+ {[%clk 0:02:48.4]} 8. Nbxd2 {[%clk
0:02:30.7]} 8... b6 {[%clk 0:02:47.4]} 9. cxb6 {[%clk 0:02:29.6]} 9... cxb6
{[%clk 0:02:48.3]} 10. O-O {[%clk 0:02:30.2]} 10... Ba6 {[%clk 0:02:47.6]} 11.
Re1 {[%clk 0:02:29.4]} 11... Nc6 {[%clk 0:02:44.1]} 12. Rc1 {[%clk 0:02:28.7]}
12... Rc8 {[%clk 0:02:43.3]} 13. a3 {[%clk 0:02:28.8]} 13... Qe7 {[%clk
0:02:28]} 14. e3 {[%clk 0:02:28.2]} 14... Rc7 {[%clk 0:02:24.8]} 15. Qb3 {[%clk
0:02:26.9]} 15... Rb8 {[%clk 0:02:13.1]} 16. Bf1 {[%clk 0:02:25.2]} 16... Bxf1
{[%clk 0:02:08.6]} 17. Rxf1 {[%clk 0:02:20.8]} 17... Qd6 {[%clk 0:01:44.9]} 18.
Rc3 {[%clk 0:02:10]} 18... Nd7 {[%clk 0:01:13]} 19. Rfc1 {[%clk 0:02:07.8]}
19... Rbc8 {[%clk 0:01:11.3]} 20. Qc2 {[%clk 0:01:54.9]} 20... b5 {[%clk
0:01:01.3]} 21. Qd3 {[%clk 0:01:24.2]} 21... b4 {[%clk 0:00:57.1]} 22. R3c2
{[%clk 0:01:13.2]} 22... Ne7 {[%clk 0:00:30.4]} 23. axb4 {[%clk 0:00:53.2]}
23... axb4 {[%clk 0:00:29.3]} 24. Nb3 {[%clk 0:00:50]} 24... h6 {[%clk
0:00:23.5]} 25. Rxc7 {[%clk 0:00:45.7]} 25... Rxc7 {[%clk 0:00:22.1]} 26. Rxc7
{[%clk 0:00:46.6]} 26... Qxc7 {[%clk 0:00:22.6]} 27. Qb5 {[%clk 0:00:46.4]}
27... Nf6 {[%clk 0:00:15.8]} 28. Qxb4 {[%clk 0:00:45.1]} 28... Ne4 {[%clk
0:00:15.9]} 29. Nc5 {[%clk 0:00:38.9]} 29... Nf5 {[%clk 0:00:15.6]} 30. Ne5
{[%clk 0:00:33]} 30... Qa7 {[%clk 0:00:12.9]} 31. Qa3 {[%clk 0:00:28.7]} 31...
Qb8 {[%clk 0:00:08.1]} 32. b4 {[%clk 0:00:20.1]} 32... Qb5 {[%clk 0:00:06]} 33.
Nxe4 {[%clk 0:00:16]} 33... dxe4 {[%clk 0:00:05.5]} 34. Qa8+ {[%clk 0:00:15.4]}
34... Kh7 {[%clk 0:00:05.7]} 35. Qxe4 {[%clk 0:00:15.6]} 35... Qxb4 {[%clk
0:00:05.2]} 36. g4 {[%clk 0:00:14.1]} 36... Qe1+ {[%clk 0:00:03.9]} 37. Kg2
{[%clk 0:00:14.6]} 37... f6 {[%clk 0:00:02.6]} 38. gxf5 {[%clk 0:00:14.9]} 38...
fxe5 {[%clk 0:00:03]} 39. fxe6+ {[%clk 0:00:15.5]} 39... Kg8 {[%clk 0:00:02.7]}
40. Qxe5 {[%clk 0:00:14.1]} 40... Qb4 {[%clk 0:00:01.6]} 41. e7 {[%clk 0:00:14]}
41... Qb7+ {[%clk 0:00:01.7]} 42. d5 {[%clk 0:00:14.2]} 1-0

[Event "*** Titled Tuesday Blitz"]
[Site "Chess.com"]
[Date "2021.04.20"]
[Round "7"]
[White "Zq1"]
[Black "VladimirBugayev"]
[Result "1-0"]
[WhiteElo "2526"]
[BlackElo "2265"]
[TimeControl "180+1"]
[EndTime "11:17:06 PDT"]
[Termination "Zq1 won on time"]

1. d4 {[%clk 0:03:00.9]} 1... Nf6 {[%clk 0:02:58.8]} 2. c4 {[%clk 0:03:00.8]}
2... c5 {[%clk 0:02:58.5]} 3. Nf3 {[%clk 0:02:59.9]} 3... cxd4 {[%clk
0:02:57.4]} 4. Nxd4 {[%clk 0:02:59.9]} 4... Nc6 {[%clk 0:02:58.1]} 5. Nc3 {[%clk
0:02:58.7]} 5... g6 {[%clk 0:02:58.3]} 6. e4 {[%clk 0:02:57.8]} 6... Bg7 {[%clk
0:02:58.7]} 7. Be3 {[%clk 0:02:57]} 7... d6 {[%clk 0:02:58.9]} 8. Be2 {[%clk
0:02:57]} 8... O-O {[%clk 0:02:59.5]} 9. O-O {[%clk 0:02:56.7]} 9... Bd7 {[%clk
0:03:00.1]} 10. Qd2 {[%clk 0:02:56.1]} 10... Nxd4 {[%clk 0:02:59.7]} 11. Bxd4
{[%clk 0:02:55.7]} 11... Bc6 {[%clk 0:03:00.4]} 12. f3 {[%clk 0:02:55.4]} 12...
a5 {[%clk 0:03:00.7]} 13. b3 {[%clk 0:02:46.8]} 13... Nd7 {[%clk 0:02:59.1]} 14.
Be3 {[%clk 0:02:45]} 14... Nc5 {[%clk 0:02:45.4]} 15. Rac1 {[%clk 0:02:43.2]}
15... Be5 {[%clk 0:02:25.4]} 16. g3 {[%clk 0:02:34.9]} 16... e6 {[%clk
0:02:20.6]} 17. Nb5 {[%clk 0:02:28.2]} 17... Bxb5 {[%clk 0:01:41.3]} 18. cxb5
{[%clk 0:02:27.3]} 18... b6 {[%clk 0:01:37.1]} 19. f4 {[%clk 0:02:25.5]} 19...
Bf6 {[%clk 0:00:53.1]} 20. Bf3 {[%clk 0:02:24.5]} 20... Rc8 {[%clk 0:00:53.1]}
21. Rfd1 {[%clk 0:02:17.7]} 21... Be7 {[%clk 0:00:50.8]} 22. h4 {[%clk
0:02:01.3]} 22... f5 {[%clk 0:00:37.8]} 23. Qg2 {[%clk 0:01:29.7]} 23... fxe4
{[%clk 0:00:20.4]} 24. Bxe4 {[%clk 0:01:29.1]} 24... d5 {[%clk 0:00:20.8]} 25.
Bf3 {[%clk 0:01:23.5]} 25... Bf6 {[%clk 0:00:19.9]} 26. h5 {[%clk 0:01:09.8]}
26... Qe7 {[%clk 0:00:19.3]} 27. hxg6 {[%clk 0:01:09]} 27... hxg6 {[%clk
0:00:19.2]} 28. Qe2 {[%clk 0:00:48.7]} 28... Rfd8 {[%clk 0:00:18.4]} 29. Bd4
{[%clk 0:00:41.1]} 29... Kg7 {[%clk 0:00:15.3]} 30. Kg2 {[%clk 0:00:36.3]} 30...
Rh8 {[%clk 0:00:14.9]} 31. Be5 {[%clk 0:00:25.3]} 31... Rh7 {[%clk 0:00:08.5]}
32. Rh1 {[%clk 0:00:21.5]} 32... Rch8 {[%clk 0:00:08.3]} 33. Rxh7+ {[%clk
0:00:20.8]} 33... Rxh7 {[%clk 0:00:08.6]} 34. g4 {[%clk 0:00:16.3]} 34... Bxe5
{[%clk 0:00:03.2]} 35. Qxe5+ {[%clk 0:00:14.8]} 35... Qf6 {[%clk 0:00:03.7]} 36.
Qc7+ {[%clk 0:00:13.7]} 36... Qf7 {[%clk 0:00:04.2]} 37. Qe5+ {[%clk 0:00:11.9]}
37... Qf6 {[%clk 0:00:04.1]} 38. Qe3 {[%clk 0:00:10.8]} 38... Qh4 {[%clk
0:00:03.1]} 39. Rg1 {[%clk 0:00:07.6]} 39... Qh2+ {[%clk 0:00:02.4]} 40. Kf1
{[%clk 0:00:07.7]} 40... Ne4 {[%clk 0:00:02.2]} 41. Bxe4 {[%clk 0:00:06]} 41...
dxe4 {[%clk 0:00:02.5]} 42. Qxe4 {[%clk 0:00:05.9]} 42... Rh3 {[%clk 0:00:02.2]}
43. Rg2 {[%clk 0:00:03.2]} 43... Qh1+ {[%clk 0:00:01.2]} 44. Ke2 {[%clk
0:00:03.1]} 44... Qc1 {[%clk 0:00:01]} 45. Qe5+ {[%clk 0:00:02.5]} 1-0

[Event "*** Titled Tuesday Blitz"]
[Site "Chess.com"]
[Date "2021.04.20"]
[Round "7"]
[White "JakubPulpan"]
[Black "champ2005"]
[Result "0-1"]
[WhiteElo "2748"]
[BlackElo "2989"]
[TimeControl "180+1"]
[EndTime "11:17:07 PDT"]
[Termination "champ2005 won by resignation"]

1. Nf3 {[%clk 0:03:00.9]} 1... d5 {[%clk 0:02:58.3]} 2. b3 {[%clk 0:02:56]} 2...
c5 {[%clk 0:02:55.7]} 3. Bb2 {[%clk 0:02:47.5]} 3... f6 {[%clk 0:02:55.1]} 4. g3
{[%clk 0:02:31.6]} 4... e5 {[%clk 0:02:53.1]} 5. Bg2 {[%clk 0:02:31.6]} 5... Nc6
{[%clk 0:02:52.7]} 6. O-O {[%clk 0:02:30.5]} 6... Be6 {[%clk 0:02:51]} 7. d3
{[%clk 0:02:22.6]} 7... Bd6 {[%clk 0:02:47.6]} 8. Nbd2 {[%clk 0:01:59.9]} 8...
Nge7 {[%clk 0:02:47.8]} 9. e4 {[%clk 0:01:54.8]} 9... d4 {[%clk 0:02:38.1]} 10.
Nh4 {[%clk 0:01:52.1]} 10... g5 {[%clk 0:02:31.5]} 11. Nf5 {[%clk 0:01:50]}
11... Nxf5 {[%clk 0:02:32]} 12. exf5 {[%clk 0:01:50.3]} 12... Bxf5 {[%clk
0:02:32.9]} 13. Be4 {[%clk 0:01:33.1]} 13... Bg6 {[%clk 0:02:25.4]} 14. Qf3
{[%clk 0:01:21.3]} 14... Rc8 {[%clk 0:01:56.5]} 15. Bf5 {[%clk 0:00:54]} 15...
Rc7 {[%clk 0:01:48.9]} 16. Ne4 {[%clk 0:00:53.4]} 16... Be7 {[%clk 0:01:48]} 17.
g4 {[%clk 0:00:50.8]} 17... Nb4 {[%clk 0:01:37.4]} 18. a3 {[%clk 0:00:30.9]}
18... Nd5 {[%clk 0:01:36.2]} 19. Bc1 {[%clk 0:00:31.5]} 19... Bxf5 {[%clk
0:01:30.5]} 20. Qxf5 {[%clk 0:00:32.4]} 20... Qd7 {[%clk 0:01:28.9]} 21. Ng3
{[%clk 0:00:21.9]} 21... Qxf5 {[%clk 0:01:27.3]} 22. Nxf5 {[%clk 0:00:22.8]}
22... Kf7 {[%clk 0:01:19.5]} 23. Kg2 {[%clk 0:00:11.7]} 23... h5 {[%clk
0:01:19.6]} 24. h3 {[%clk 0:00:12.2]} 24... Bf8 {[%clk 0:01:16.5]} 25. Bd2
{[%clk 0:00:12.2]} 25... b6 {[%clk 0:01:14.6]} 26. Ng3 {[%clk 0:00:12.4]} 26...
h4 {[%clk 0:01:09.7]} 27. Nf5 {[%clk 0:00:12.8]} 27... a6 {[%clk 0:01:08.1]} 28.
a4 {[%clk 0:00:11.7]} 28... Ke6 {[%clk 0:01:08.1]} 29. Rfe1 {[%clk 0:00:11.6]}
29... Bd6 {[%clk 0:01:03]} 30. Kf3 {[%clk 0:00:11]} 30... Rhc8 {[%clk
0:01:03.5]} 31. Ke4 {[%clk 0:00:08.9]} 31... Bf8 {[%clk 0:01:04]} 32. Kf3 {[%clk
0:00:08.9]} 32... Nb4 {[%clk 0:00:53.1]} 33. Rec1 {[%clk 0:00:07.6]} 33... Kd5
{[%clk 0:00:44.8]} 34. Ra3 {[%clk 0:00:06.5]} 34... Nc6 {[%clk 0:00:42.8]} 35.
Raa1 {[%clk 0:00:05.8]} 35... Ra7 {[%clk 0:00:42.5]} 36. Ra2 {[%clk 0:00:05.1]}
36... Rca8 {[%clk 0:00:43]} 37. Rca1 {[%clk 0:00:05.2]} 37... Nb4 {[%clk
0:00:41.5]} 38. Bxb4 {[%clk 0:00:03.2]} 38... cxb4 {[%clk 0:00:42.4]} 39. Ke2
{[%clk 0:00:03.7]} 39... e4 {[%clk 0:00:36.1]} 40. dxe4+ {[%clk 0:00:04.6]}
40... Kxe4 {[%clk 0:00:36.8]} 41. Rd1 {[%clk 0:00:05.4]} 41... Bc5 {[%clk
0:00:34]} 42. f3+ {[%clk 0:00:05.5]} 42... Kf4 {[%clk 0:00:29.6]} 43. Kf2 {[%clk
0:00:06]} 43... Re8 {[%clk 0:00:26.4]} 44. Rd3 {[%clk 0:00:05.8]} 44... Re6
{[%clk 0:00:16.7]} 45. Ng7 {[%clk 0:00:04.2]} 45... Rxg7 {[%clk 0:00:16.4]} 46.
Ra1 {[%clk 0:00:04.3]} 46... Rge7 {[%clk 0:00:16.4]} 0-1